fUSD/lending_fUSD_20241119
["ID","MTS","AMOUNT","RATE_DAILY","PERIOD"]
[342638327,1732015840362,-500.0,9.999e-05,2]
[342638328,1732015840371,-500.0,9.999e-05,2]
[342638329,1732015840380,-500.0,9.999e-05,2]
[342638330,1732015840389,-500.0,9.999e-05,2]
[342638331,1732015840398,-500.0,9.999e-05,2]
[342638332,1732015840408,-500.0,9.999e-05,2]
[342638333,1732015840417,-500.0,9.999e-05,2]
[342638334,1732015840426,-500.0,9.999e-05,2]
[342638335,1732015840435,-500.0,9.999e-05,2]
[342638336,1732015840449,-500.0,9.999e-05,2]
[342638337,1732015840458,-500.0,9.999e-05,2]
[342638338,1732015840467,-500.0,9.999e-05,2]
[342638339,1732015840476,-500.0,9.999e-05,2]
[342638340,1732015840486,-500.0,9.999e-05,2]
[342638341,1732015840495,-500.0,9.999e-05,2]
[342638342,1732015840505,-396.2,9.999e-05,2]
[342638343,1732015840515,-500.0,9.999e-05,2]
[342638344,1732015840524,-598.09,9.999e-05,2]
[342638345,1732015840534,-500.0,9.999e-05,2]
[342638346,1732015840543,-500.0,9.999e-05,2]
[342638347,1732015840553,-500.0,9.999e-05,2]
[342638348,1732015840562,-500.0,9.999e-05,2]
[342638349,1732015840571,-500.0,9.999e-05,2]
[342638350,1732015840581,-500.0,9.999e-05,2]
[342638351,1732015840590,-500.0,9.999e-05,2]
[342638352,1732015840599,-500.0,9.999e-05,2]
[342638353,1732015840608,-605.82,9.999e-05,2]
[342638354,1732015840617,-500.0,9.999e-05,2]
[342638355,1732015840627,-500.0,9.999e-05,2]
[342638356,1732015840641,-500.0,9.999e-05,2]
[342638357,1732015840650,-500.0,9.999e-05,2]
[342638358,1732015840659,-305.76,9.999e-05,2]
[342638359,1732015840669,-500.0,9.999e-05,2]
[342638360,1732015840680,-500.0,9.999e-05,2]
[342638361,1732015840691,-500.0,9.999e-05,2]
[342638362,1732015840700,-500.0,9.999e-05,2]
[342638363,1732015840711,-500.0,9.999e-05,2]
[342638364,1732015840720,-270.12,9.999e-05,2]
[342638365,1732015840730,-500.0,9.999e-05,2]
[342638366,1732015840739,-500.0,9.999e-05,2]
[342638367,1732015840748,-500.0,9.999e-05,2]
[342638368,1732015840757,-500.0,9.999e-05,2]
[342638369,1732015840766,-500.0,9.999e-05,2]
[342638370,1732015840775,-500.0,9.999e-05,2]
[342638371,1732015840784,-500.0,9.999e-05,2]
[342638372,1732015840793,-500.0,9.999e-05,2]
[342638373,1732015840802,-500.0,9.999e-05,2]
[342638374,1732015841015,-500.0,9.999e-05,2]
[342638375,1732015841025,-500.0,9.999e-05,2]
[342638376,1732015841035,-500.0,9.999e-05,2]
[342638377,1732015841045,-500.0,9.999e-05,2]
[342638378,1732015841055,-500.0,9.999e-05,2]
[342638379,1732015841065,-535.35485949,9.999e-05,2]
[342638380,1732015841075,-500.0,9.999e-05,2]
[342638381,1732015841084,-500.0,9.999e-05,2]
[342638382,1732015841093,-500.0,9.999e-05,2]
[342638383,1732015841102,-500.0,9.999e-05,2]
[342638384,1732015841111,-500.0,9.999e-05,2]
[342638385,1732015841120,-500.0,9.999e-05,2]
[342638386,1732015841130,-500.0,9.999e-05,2]
[342638387,1732015841139,-500.0,9.999e-05,2]
[342638388,1732015841149,-500.0,9.999e-05,2]
[342638389,1732015841157,-500.0,9.999e-05,2]
[342638390,1732015841167,-500.0,9.999e-05,2]
[342638391,1732015841176,-337.08,9.999e-05,2]
[342638392,1732015841185,-500.0,9.999e-05,2]
[342638393,1732015841196,-634.48228408,9.999e-05,2]
[342638394,1732015841205,-527.98,9.999e-05,2]
[342638395,1732015841214,-527.98,9.999e-05,2]
[342638396,1732015841223,-500.0,9.999e-05,2]
[342638397,1732015841232,-527.98,9.999e-05,2]
[342638398,1732015841241,-500.0,9.999e-05,2]
[342638399,1732015841251,-500.0,9.999e-05,2]
[342638400,1732015841260,-527.98,9.999e-05,2]
[342638401,1732015841269,-592.96,9.999e-05,2]
[342638402,1732015841278,-500.0,9.999e-05,2]
[342638403,1732015841287,-527.98,9.999e-05,2]
[342638404,1732015841296,-500.0,9.999e-05,2]
[342638405,1732015841305,-527.98,9.999e-05,2]
[342638406,1732015841315,-500.0,9.999e-05,2]
[342638407,1732015841324,-527.98,9.999e-05,2]
[342638408,1732015841334,-500.0,9.999e-05,2]
[342638409,1732015841344,-527.98,9.999e-05,2]
[342638410,1732015841353,-500.0,9.999e-05,2]
[342638411,1732015841365,-527.98,9.999e-05,2]
[342638412,1732015841374,-500.0,9.999e-05,2]
[342638413,1732015841383,-527.98,9.999e-05,2]
[342638414,1732015841392,-500.0,9.999e-05,2]
[342638415,1732015841402,-527.98,9.999e-05,2]
[342638416,1732015841411,-500.0,9.999e-05,2]
[342638417,1732015841421,-527.98,9.999e-05,2]
[342638418,1732015841430,-500.0,9.999e-05,2]
[342638419,1732015841441,-527.98,9.999e-05,2]
[342638420,1732015841450,-500.0,9.999e-05,2]
[342638421,1732015841459,-527.98,9.999e-05,2]
[342638422,1732015841468,-500.0,9.999e-05,2]
[342638423,1732015841478,-527.98,9.999e-05,2]
[342638424,1732015841489,-271.94,9.999e-05,2]
[342638425,1732015841499,-527.98,9.999e-05,2]
[342638426,1732015841509,-527.98,9.999e-05,2]
[342638427,1732015841519,-527.98,9.999e-05,2]
[342638428,1732015841528,-527.98,9.999e-05,2]
[342638429,1732015841539,-527.98,9.999e-05,2]
[342638430,1732015841549,-527.98,9.999e-05,2]
[342638431,1732015841558,-528.05,9.999e-05,2]
[342638432,1732015841568,-500.0,9.999e-05,2]
[342638433,1732015841579,-500.0,9.999e-05,2]
[342638434,1732015841589,-500.0,9.999e-05,2]
[342638435,1732015841599,-500.0,9.999e-05,2]
[342638436,1732015841609,-500.0,9.999e-05,2]
[342638437,1732015841619,-500.0,9.999e-05,2]
[342638438,1732015841628,-500.0,9.999e-05,2]
[342638439,1732015841642,-500.0,9.999e-05,2]
[342638440,1732015841651,-500.0,9.999e-05,2]
[342638441,1732015841660,-500.0,9.999e-05,2]
[342638442,1732015841670,-188.98,9.999e-05,2]
[342638443,1732015841680,-500.0,9.999e-05,2]
[342638444,1732015841690,-500.0,9.999e-05,2]
[342638445,1732015841700,-500.0,9.999e-05,2]
[342638446,1732015841710,-500.0,9.999e-05,2]
[342638447,1732015841719,-500.0,9.999e-05,2]
[342638448,1732015841728,-500.0,9.999e-05,2]
[342638449,1732015841738,-500.0,9.999e-05,2]
[342638450,1732015841747,-500.0,9.999e-05,2]
[342638451,1732015841756,-500.0,9.999e-05,2]
[342638452,1732015841765,-500.0,9.999e-05,2]
[342638453,1732015841774,-500.0,9.999e-05,2]
[342638454,1732015841783,-500.0,9.999e-05,2]
[342638455,1732015841792,-500.0,9.999e-05,2]
[342638456,1732015841801,-500.0,9.999e-05,2]
[342638457,1732015841810,-500.0,9.999e-05,2]
[342638458,1732015841819,-500.0,9.999e-05,2]
[342638459,1732015841828,-500.0,9.999e-05,2]
[342638460,1732015841837,-500.0,9.999e-05,2]
[342638461,1732015841846,-418.07,9.999e-05,2]
[342638462,1732015841855,-500.0,9.999e-05,2]
[342638463,1732015841865,-500.0,9.999e-05,2]
[342638464,1732015841874,-500.0,9.999e-05,2]
[342638465,1732015841883,-500.0,9.999e-05,2]
[342638466,1732015841892,-500.0,9.999e-05,2]
[342638467,1732015841901,-500.0,9.999e-05,2]
[342638468,1732015841910,-500.0,9.999e-05,2]
[342638469,1732015841919,-500.0,9.999e-05,2]
[342638470,1732015841928,-500.0,9.999e-05,2]
[342638471,1732015841937,-500.0,9.999e-05,2]
[342638472,1732015841948,-500.0,9.999e-05,2]
[342638473,1732015841957,-415.88,9.999e-05,2]
[342638474,1732015841967,-500.0,9.999e-05,2]
[342638475,1732015841977,-500.0,9.999e-05,2]
[342638476,1732015841986,-500.0,9.999e-05,2]
[342638477,1732015841995,-500.0,9.999e-05,2]
[342638478,1732015842004,-500.0,9.999e-05,2]
[342638479,1732015842014,-500.0,9.999e-05,2]
[342638480,1732015842023,-500.0,9.999e-05,2]
[342638481,1732015842032,-500.0,9.999e-05,2]
[342638482,1732015842041,-500.0,9.999e-05,2]
[342638483,1732015842051,-500.0,9.999e-05,2]
[342638484,1732015842060,-500.0,9.999e-05,2]
[342638485,1732015842070,-500.0,9.999e-05,2]
[342638486,1732015842080,-500.0,9.999e-05,2]
[342638487,1732015842089,-500.0,9.999e-05,2]
[342638488,1732015842099,-179.9,9.999e-05,2]
[342638489,1732015842108,-500.0,9.999e-05,2]
[342638490,1732015842119,-500.0,9.999e-05,2]
[342638491,1732015842128,-500.0,9.999e-05,2]
[342638492,1732015842138,-500.0,9.999e-05,2]
[342638493,1732015842147,-500.0,9.999e-05,2]
[342638494,1732015842157,-500.0,9.999e-05,2]
[342638495,1732015842166,-500.0,9.999e-05,2]
[342638496,1732015842177,-500.0,9.999e-05,2]
[342638497,1732015842188,-500.0,9.999e-05,2]
[342638498,1732015842202,-500.78,9.999e-05,2]
[342638499,1732015842211,-562.02973599,9.999e-05,2]
[342638500,1732015842221,-500.0,9.999e-05,2]
[342638501,1732015842230,-500.0,9.999e-05,2]
[342638502,1732015842240,-500.0,9.999e-05,2]
[342638503,1732015842249,-500.0,9.999e-05,2]
[342638504,1732015842258,-500.0,9.999e-05,2]
[342638505,1732015842267,-500.0,9.999e-05,2]
[342638506,1732015842277,-500.0,9.999e-05,2]
[342638507,1732015842286,-500.0,9.999e-05,2]
[342638508,1732015842296,-500.0,9.999e-05,2]
[342638509,1732015842305,-326.03,9.999e-05,2]
[342638510,1732015842315,-500.0,9.999e-05,2]
[342638511,1732015842327,-500.0,9.999e-05,2]
[342638512,1732015842336,-500.0,9.999e-05,2]
[342638513,1732015842346,-500.0,9.999e-05,2]
[342638514,1732015842355,-500.0,9.999e-05,2]
[342638515,1732015842365,-500.0,9.999e-05,2]
[342638516,1732015842374,-500.0,9.999e-05,2]
[342638517,1732015842383,-500.0,9.999e-05,2]
[342638518,1732015842392,-500.0,9.999e-05,2]
[342638519,1732015842401,-500.0,9.999e-05,2]
[342638520,1732015842410,-500.0,9.999e-05,2]
[342638521,1732015842419,-194.56,9.999e-05,2]
[342638522,1732015842428,-307.290002,9.999e-05,2]
[342638523,1732015842438,-514587.83277723,0.0001,2]
[342638524,1732015842450,-11495.92257894,0.0001,2]
[342638525,1732015842459,-151.37473885,0.0001,2]
[342638526,1732015842468,-151.37473881,0.0001,2]
[342638527,1732015842477,-151.37473881,0.0001,2]
[342638528,1732015842486,-151.37473881,0.0001,2]
[342638529,1732015842495,-13327295.31960357,0.0001,2]
[342638533,1732015842516,-5382.296625,0.0001,2]
[342638537,1732015842526,-7399.88822,0.0001,2]
[342638545,1732015842581,-500.0,9.899e-05,2]
[342638547,1732015842590,-500.0,9.992e-05,2]
[342638549,1732015842599,-500.0,9.999e-05,2]
[342638551,1732015842609,-500.0,9.999e-05,2]
[342638553,1732015842618,-5969.36409368,0.0001,2]
[342638556,1732015842645,-311221.33877246,0.0001,2]
[342638558,1732015842658,-2442.89866639,0.0001,2]
[342638561,1732015842670,-3448.81999983,0.0001,2]
[342638563,1732015842683,-1500.98480782,0.0001,2]
[342638566,1732015842705,-500.0,9.999e-05,2]
[342638568,1732015842717,-2116.345867,0.0001,2]
[342638570,1732015842732,-388.77583978,0.0001,2]
[342638578,1732015842905,-500.0,9.863e-05,2]
[342638579,1732015842915,-500.0,9.999e-05,2]
[342638580,1732015842926,-500.0,9.999e-05,2]
[342638581,1732015842935,-500.0,9.999e-05,2]
[342638582,1732015842948,-500.0,9.999e-05,2]
[342638583,1732015842957,-500.0,9.999e-05,2]
[342638584,1732015842967,-500.0,9.999e-05,2]
[342638585,1732015842976,-500.0,9.999e-05,2]
[342638586,1732015842985,-500.0,9.999e-05,2]
[342638587,1732015842995,-500.0,9.999e-05,2]
[342638588,1732015843005,-801871.45143303,0.0001,2]
[342638590,1732015843025,-500.0,9.999e-05,2]
[342638591,1732015843034,-23749.48788272,0.0001,2]
[342638592,1732015843059,-500.0,9.863e-05,2]
[342638593,1732015843068,-4500.52510046,0.0001,2]
[342638595,1732015843080,-2035.54674261,0.0001,2]
[342638597,1732015843091,-2355.26968628,0.0001,2]
[342638598,1732015843102,-33904.09169308,0.0001,2]
[342638600,1732015843114,-1831.9534897,0.0001,2]
[342638604,1732015845590,-500.0,9.863e-05,2]
[342638605,1732015845600,-500.0,9.899e-05,2]
[342638606,1732015845610,-500.0,9.899e-05,2]
[342638607,1732015845620,-500.0,9.992e-05,2]
[342638608,1732015845629,-500.0,9.999e-05,2]
[342638609,1732015845645,-300.3606245,9.999e-05,2]
[342638610,1732015845656,-199.6393755,9.999e-05,2]
[342638611,1732015845666,-500.0,9.999e-05,2]
[342638612,1732015845675,-629.24,9.999e-05,2]
[342638613,1732015845686,-500.0,9.999e-05,2]
[342638614,1732015845697,-500.0,9.999e-05,2]
[342638615,1732015845706,-500.0,9.999e-05,2]
[342638616,1732015845717,-132.69405998,9.999e-05,2]
[342638617,1732015845729,-367.30594002,9.999e-05,2]
[342638618,1732015845738,-500.0,9.999e-05,2]
[342638619,1732015845748,-500.0,9.999e-05,2]
[342638620,1732015845757,-500.0,9.999e-05,2]
[342638621,1732015845767,-500.0,9.999e-05,2]
[342638622,1732015845776,-500.0,9.999e-05,2]
[342638623,1732015845785,-58007.73106149,0.0001,2]
[342638624,1732015845797,-14951.42181964,0.0001,2]
[342638625,1732015845808,-42755.39445596,0.0001,2]
[342638626,1732015845819,-537232.57769722,0.0001,2]
[342638627,1732015845832,-431.885,0.0001,2]
[342638628,1732015845843,-3838.06385,0.0001,2]
[342638629,1732015845862,-455.62776531,9.999e-05,2]
[342638630,1732015845874,-44.37223469,9.999e-05,2]
[342638631,1732015845885,-28793.12776531,0.0001,2]
[342639550,1732015921600,500.0,8.22e-05,2]
[342639551,1732016157963,1215.86,8.219e-05,2]
[342639552,1732016323782,210.199,0.0002277,120]
[342639556,1732016800939,-300.0,0.0001,3]
[342639557,1732016806149,-250.0,8.722e-05,2]
[342639558,1732016806174,-303.19,8.741e-05,2]
[342639559,1732016806196,-521.47,8.788e-05,2]
[342639560,1732016806217,-523.35,8.946e-05,2]
[342639561,1732016806239,-898.53,8.952e-05,2]
[342639562,1732016806260,-389.01,8.955e-05,2]
[342639563,1732016806284,-488.87247241,8.977e-05,2]
[342639582,1732017019672,1155.06,8.219e-05,2]
[342639583,1732017031869,-1000.0,8.761e-05,2]
[342639584,1732017031879,-165.55,8.862e-05,2]
[342639585,1732017031888,-250.0,8.867e-05,2]
[342639586,1732017031897,-703.98583134,8.867e-05,2]
[342639587,1732017031907,-250.0,8.887e-05,2]
[342639588,1732017031916,-703.98583133,8.899e-05,2]
[342639589,1732017031925,-300.0,8.899e-05,2]
[342639590,1732017031933,-10049.22833733,8.9e-05,2]
[342639591,1732017031945,-953.82575415,8.9e-05,2]
[342639592,1732017031958,-1567.18340261,8.9e-05,2]
[342639593,1732017031970,-882.8,8.9e-05,2]
[342639594,1732017031982,-1073.8940593,8.9e-05,2]
[342639595,1732017032015,-1760.0,8.9e-05,2]
[342639596,1732017032108,-1051.14437944,8.9e-05,2]
[342639597,1732017032179,-490.1828127,8.9e-05,2]
[342639598,1732017032190,-897.03528111,8.9e-05,2]
[342639599,1732017032202,-5174.70597336,8.9e-05,2]
[342639600,1732017032211,-703.98583133,8.931e-05,2]
[342639601,1732017032221,-156.64,8.931e-05,2]
[342639602,1732017032230,-150.0,8.986e-05,2]
[342639603,1732017032240,-793.11,9.015e-05,2]
[342639604,1732017032249,-5604.84,9.032e-05,2]
[342639605,1732017032259,-168.9,9.179e-05,2]
[342639607,1732017032268,-257.14,9.272e-05,2]
[342639608,1732017032278,-185.29,9.346e-05,2]
[342639609,1732017032287,-500.0,9.59e-05,2]
[342639610,1732017032296,-150.0,9.74e-05,2]
[342639611,1732017032306,-420.0,9.789e-05,2]
[342639612,1732017032315,-303.19,9.834e-05,2]
[342639613,1732017032325,-1000.0,9.856e-05,2]
[342639614,1732017032335,-150.0,9.862e-05,2]
[342639615,1732017032344,-476.75257138,9.863e-05,2]
[342639616,1732017032354,-500.0,9.863e-05,2]
[342639617,1732017032363,-500.0,9.863e-05,2]
[342639618,1732017032373,-500.0,9.863e-05,2]
[342639619,1732017032382,-502.90180508,9.863e-05,2]
[342639620,1732017032392,-500.0,9.863e-05,2]
[342639621,1732017032401,-500.0,9.863e-05,2]
[342639622,1732017032409,-500.0,9.863e-05,2]
[342639623,1732017032418,-500.0,9.863e-05,2]
[342639624,1732017032426,-272.51,9.863e-05,2]
[342639625,1732017032435,-500.0,9.863e-05,2]
[342639626,1732017032443,-500.0,9.863e-05,2]
[342639627,1732017032451,-500.0,9.863e-05,2]
[342639628,1732017032459,-500.0,9.863e-05,2]
[342639629,1732017032467,-500.0,9.863e-05,2]
[342639630,1732017032476,-500.0,9.863e-05,2]
[342639631,1732017032486,-500.0,9.863e-05,2]
[342639632,1732017032495,-500.0,9.863e-05,2]
[342639633,1732017032505,-500.0,9.863e-05,2]
[342639634,1732017032514,-500.0,9.863e-05,2]
[342639635,1732017032523,-500.0,9.863e-05,2]
[342639636,1732017032533,-500.0,9.863e-05,2]
[342639637,1732017032542,-500.0,9.863e-05,2]
[342639638,1732017032552,-500.0,9.863e-05,2]
[342639639,1732017032561,-502.96669828,9.863e-05,2]
[342639640,1732017032573,-500.0,9.863e-05,2]
[342639641,1732017032583,-500.0,9.863e-05,2]
[342639642,1732017032592,-500.0,9.863e-05,2]
[342639643,1732017032604,-500.0,9.863e-05,2]
[342639644,1732017032614,-500.0,9.863e-05,2]
[342639645,1732017032624,-539.28,9.863e-05,2]
[342639646,1732017032634,-539.28,9.863e-05,2]
[342639647,1732017032643,-539.28,9.863e-05,2]
[342639648,1732017032653,-500.0,9.863e-05,2]
[342639649,1732017032664,-500.0,9.863e-05,2]
[342639650,1732017032673,-500.0,9.863e-05,2]
[342639651,1732017032683,-500.0,9.863e-05,2]
[342639652,1732017032946,-500.0,9.863e-05,2]
[342639653,1732017032958,-500.0,9.863e-05,2]
[342639654,1732017032967,-500.0,9.863e-05,2]
[342639655,1732017032977,-500.0,9.863e-05,2]
[342639656,1732017032988,-500.0,9.863e-05,2]
[342639657,1732017032999,-5000.0,9.863e-05,2]
[342639658,1732017033008,-5000.0,9.863e-05,2]
[342639659,1732017033018,-4008.38428705,9.863e-05,2]
[342639660,1732017033029,-500.0,9.863e-05,2]
[342639661,1732017033040,-500.0,9.863e-05,2]
[342639662,1732017033049,-500.0,9.863e-05,2]
[342639663,1732017033059,-500.0,9.863e-05,2]
[342639664,1732017033068,-500.0,9.863e-05,2]
[342639665,1732017033078,-500.0,9.863e-05,2]
[342639666,1732017033087,-500.0,9.863e-05,2]
[342639667,1732017033097,-500.0,9.863e-05,2]
[342639668,1732017033106,-500.0,9.863e-05,2]
[342639669,1732017033116,-500.0,9.863e-05,2]
[342639670,1732017033125,-500.0,9.863e-05,2]
[342639671,1732017033135,-500.0,9.863e-05,2]
[342639672,1732017033146,-500.0,9.863e-05,2]
[342639673,1732017033156,-500.0,9.863e-05,2]
[342639674,1732017033165,-500.0,9.863e-05,2]
[342639675,1732017033175,-408.84,9.863e-05,2]
[342639676,1732017033186,-500.0,9.899e-05,2]
[342639677,1732017033195,-500.0,9.899e-05,2]
[342639678,1732017033205,-500.0,9.899e-05,2]
[342639679,1732017033215,-500.0,9.899e-05,2]
[342639680,1732017033225,-500.0,9.899e-05,2]
[342639681,1732017033234,-500.0,9.899e-05,2]
[342639682,1732017033243,-500.0,9.899e-05,2]
[342639683,1732017033252,-539.28,9.899e-05,2]
[342639684,1732017033262,-562.02973599,9.899e-05,2]
[342639685,1732017033271,-500.0,9.899e-05,2]
[342639686,1732017033280,-500.0,9.899e-05,2]
[342639687,1732017033291,-180.8,9.899e-05,2]
[342639688,1732017033300,-237.30540353,9.899e-05,2]
[342639689,1732017033310,-500.0,9.92e-05,2]
[342639690,1732017033319,-968.82,9.961e-05,2]
[342639691,1732017033329,-433.37,9.961e-05,2]
[342639692,1732017033339,-433.37,9.961e-05,2]
[342639693,1732017033348,-433.37,9.961e-05,2]
[342639694,1732017033358,-10375.9974077,9.988e-05,2]
[342639695,1732017033367,-1543.1816528,9.988e-05,2]
[342639696,1732017033377,-500.0,9.992e-05,2]
[342639697,1732017033387,-500.0,9.992e-05,2]
[342639698,1732017033397,-500.0,9.992e-05,2]
[342639699,1732017033406,-500.0,9.992e-05,2]
[342639700,1732017033416,-500.0,9.992e-05,2]
[342639701,1732017033425,-500.0,9.992e-05,2]
[342639702,1732017033434,-539.28,9.992e-05,2]
[342639703,1732017033443,-500.0,9.992e-05,2]
[342639704,1732017033453,-500.0,9.992e-05,2]
[342639705,1732017033462,-8881.0040512,9.993e-05,2]
[342639706,1732017033471,-7386.0106947,9.993e-05,2]
[342639707,1732017033481,-5891.0173382,9.993e-05,2]
[342639708,1732017033491,-1320.8371178,9.993e-05,2]
[342639709,1732017033500,-1098.4925828,9.993e-05,2]
[342639710,1732017033510,-876.1480478,9.993e-05,2]
[342639711,1732017033519,-1504.169,9.997e-05,2]
[342639712,1732017033529,-182.29,9.997e-05,2]
[342639713,1732017033539,-500.0,9.997e-05,2]
[342639714,1732017033549,-500.0,9.997e-05,2]
[342639715,1732017033558,-500.0,9.997e-05,2]
[342639716,1732017033568,-500.0,9.997e-05,2]
[342639717,1732017033578,-580.62614466,9.997e-05,2]
[342639718,1732017033588,-500.0,9.997e-05,2]
[342639719,1732017033598,-500.0,9.997e-05,2]
[342639720,1732017033608,-500.0,9.997e-05,2]
[342639721,1732017033617,-500.0,9.997e-05,2]
[342639722,1732017033626,-500.0,9.997e-05,2]
[342639723,1732017033635,-500.0,9.997e-05,2]
[342639724,1732017033645,-500.0,9.997e-05,2]
[342639725,1732017033654,-419.81991209,9.997e-05,2]
[342639726,1732017033663,-500.0,9.997e-05,2]
[342639727,1732017033672,-623.93,9.997e-05,2]
[342639728,1732017033683,-500.0,9.997e-05,2]
[342639729,1732017033692,-208.95,9.997e-05,2]
[342639730,1732017033702,-500.0,9.997e-05,2]
[342639731,1732017033711,-500.0,9.997e-05,2]
[342639732,1732017033721,-500.0,9.997e-05,2]
[342639733,1732017033731,-500.0,9.997e-05,2]
[342639734,1732017033740,-258.84,9.997e-05,2]
[342639735,1732017033750,-500.0,9.997e-05,2]
[342639736,1732017033759,-500.0,9.997e-05,2]
[342639737,1732017033769,-456.52875644,9.997e-05,2]
[342639738,1732017033779,-500.0,9.997e-05,2]
[342639739,1732017033788,-500.0,9.997e-05,2]
[342639740,1732017033797,-500.0,9.997e-05,2]
[342639741,1732017033807,-500.0,9.997e-05,2]
[342639742,1732017033816,-500.0,9.997e-05,2]
[342639743,1732017033826,-500.0,9.997e-05,2]
[342639744,1732017033835,-500.0,9.997e-05,2]
[342639745,1732017033845,-500.0,9.997e-05,2]
[342639746,1732017033854,-500.0,9.998e-05,2]
[342639747,1732017033864,-500.0,9.998e-05,2]
[342639748,1732017033873,-500.0,9.998e-05,2]
[342639749,1732017033883,-500.0,9.998e-05,2]
[342639750,1732017033892,-500.0,9.998e-05,2]
[342639751,1732017033901,-500.0,9.998e-05,2]
[342639752,1732017033910,-500.0,9.998e-05,2]
[342639753,1732017033920,-150.0,9.998e-05,2]
[342639754,1732017033929,-500.0,9.998e-05,2]
[342639755,1732017033938,-500.0,9.998e-05,2]
[342639756,1732017033950,-500.0,9.998e-05,2]
[342639757,1732017033959,-500.0,9.998e-05,2]
[342639758,1732017033968,-500.0,9.998e-05,2]
[342639759,1732017033977,-500.0,9.998e-05,2]
[342639760,1732017033987,-500.0,9.998e-05,2]
[342639761,1732017033996,-500.0,9.998e-05,2]
[342639762,1732017034006,-500.0,9.998e-05,2]
[342639763,1732017034015,-500.0,9.998e-05,2]
[342639764,1732017034025,-500.0,9.998e-05,2]
[342639765,1732017034034,-596.78,9.998e-05,2]
[342639766,1732017034044,-500.0,9.998e-05,2]
[342639767,1732017034053,-500.0,9.998e-05,2]
[342639768,1732017034063,-500.0,9.998e-05,2]
[342639769,1732017034072,-500.0,9.998e-05,2]
[342639770,1732017034082,-500.0,9.998e-05,2]
[342639771,1732017034091,-500.0,9.998e-05,2]
[342639772,1732017034101,-500.0,9.998e-05,2]
[342639773,1732017034111,-500.0,9.998e-05,2]
[342639774,1732017034120,-500.0,9.998e-05,2]
[342639775,1732017034129,-500.0,9.998e-05,2]
[342639776,1732017034138,-500.0,9.998e-05,2]
[342639777,1732017034148,-500.79761984,9.998e-05,2]
[342639778,1732017034157,-498.67129488,9.998e-05,2]
[342639779,1732017034167,-500.0,9.998e-05,2]
[342639780,1732017034177,-776.69,9.998e-05,2]
[342639781,1732017034186,-500.0,9.998e-05,2]
[342639782,1732017034196,-479.12,9.998e-05,2]
[342639783,1732017034205,-500.0,9.998e-05,2]
[342639784,1732017034215,-1000.0,9.998e-05,2]
[342639785,1732017034224,-500.0,9.998e-05,2]
[342639786,1732017034234,-1237.08,9.998e-05,2]
[342639787,1732017034243,-155.33007477,9.998e-05,2]
[342639788,1732017034253,-500.0,9.998e-05,2]
[342639789,1732017034262,-443.36012639,9.998e-05,2]
[342639790,1732017034272,-500.0,9.998e-05,2]
[342639791,1732017034282,-500.0,9.998e-05,2]
[342639792,1732017034292,-500.0,9.998e-05,2]
[342639793,1732017034302,-500.0,9.998e-05,2]
[342639794,1732017034312,-500.0,9.998e-05,2]
[342639795,1732017034321,-156.0,9.998e-05,2]
[342639796,1732017034330,-500.0,9.998e-05,2]
[342639797,1732017034340,-500.0,9.998e-05,2]
[342639798,1732017034349,-500.0,9.998e-05,2]
[342639799,1732017034359,-680.92,9.998e-05,2]
[342639800,1732017034369,-500.0,9.998e-05,2]
[342639801,1732017034379,-553.83,9.998e-05,2]
[342639802,1732017034388,-500.0,9.998e-05,2]
[342639803,1732017034398,-500.0,9.998e-05,2]
[342639804,1732017034407,-500.0,9.998e-05,2]
[342639805,1732017034417,-500.0,9.998e-05,2]
[342639806,1732017034427,-523.68,9.998e-05,2]
[342639807,1732017034437,-500.0,9.998e-05,2]